fUSD/lending_fUSD_20240328
["ID","MTS","AMOUNT","RATE_DAILY","PERIOD"]
[320846784,1711624251220,-518.66135786,0.00053424,120]
[320846785,1711624251231,-500.0,0.00053424,120]
[320846786,1711624251241,-500.0,0.00053424,120]
[320846787,1711624251252,-500.0,0.00053424,120]
[320846788,1711624251263,-516.3067947,0.00053424,120]
[320846789,1711624251274,-500.0,0.00053424,120]
[320846790,1711624251285,-500.0,0.00053424,120]
[320846791,1711624251295,-514.41481065,0.00053424,120]
[320846792,1711624251305,-500.0,0.00053424,120]
[320846793,1711624251316,-528.53,0.00053424,120]
[320846794,1711624251326,-500.0,0.00053424,120]
[320846795,1711624251338,-515.51144361,0.00053424,120]
[320846796,1711624251349,-500.0,0.00053424,120]
[320846797,1711624251360,-624.82211077,0.00053424,120]
[320846798,1711624251370,-500.0,0.00053424,120]
[320846799,1711624251381,-500.0,0.00053424,120]
[320846800,1711624251391,-233.49760746,0.00053424,120]
[320846801,1711624251402,-500.0,0.00053424,120]
[320846802,1711624251413,-500.0,0.00053424,120]
[320846803,1711624251423,-530.57090015,0.00053424,120]
[320846804,1711624251434,-500.0,0.00053424,120]
[320846805,1711624251445,-516.38892747,0.00053424,120]
[320846806,1711624251456,-500.0,0.00053424,120]
[320846807,1711624251466,-466.1544079,0.00053424,120]
[320846808,1711624251477,-367.52845382,0.00053424,120]
[320846809,1711624251487,-500.0,0.00053424,120]
[320846810,1711624251498,-537.31552635,0.00053424,120]
[320846811,1711624251508,-500.0,0.00053424,120]
[320846812,1711624251520,-500.0,0.00053424,120]
[320846813,1711624251531,-542.83,0.00053424,120]
[320846814,1711624251543,-500.0,0.00053424,120]
[320846815,1711624251555,-500.0,0.00053424,120]
[320846816,1711624251566,-630.29532587,0.00053424,120]
[320846817,1711624251577,-627.06,0.00053424,120]
[320846818,1711624251588,-1090.67,0.00053424,120]
[320846819,1711624251598,-500.0,0.00053424,120]
[320846820,1711624251608,-500.0,0.00053424,120]
[320846821,1711624251618,-500.0,0.00053424,120]
[320846822,1711624251629,-500.0,0.00053424,120]
[320846823,1711624251639,-500.0,0.00053424,120]
[320846824,1711624251649,-500.0,0.00053424,60]
[320846825,1711624251659,-961.33,0.00053424,120]
[320846826,1711624251669,-500.0,0.00053424,120]
[320846827,1711624251680,-500.0,0.00053424,120]
[320846828,1711624251691,-558.25,0.00053424,120]
[320846829,1711624251701,-500.0,0.00053424,120]
[320846830,1711624251711,-500.0,0.00053424,120]
[320846831,1711624251723,-500.0,0.00053424,120]
[320846832,1711624251742,-500.0,0.00053424,120]
[320846833,1711624251756,-1304.89,0.00053424,120]
[320846834,1711624251767,-549.74254758,0.00053424,120]
[320846835,1711624251777,-2197.53,0.00053424,120]
[320846836,1711624251788,-500.0,0.00053424,120]
[320846837,1711624251799,-500.0,0.00053424,120]
[320846838,1711624251811,-811.26,0.00053424,120]
[320846839,1711624251822,-1103.4,0.00053424,120]
[320846840,1711624251833,-972.22,0.00053424,120]
[320846841,1711624251845,-568.56,0.00053424,120]
[320846842,1711624251856,-500.0,0.00053424,120]
[320846843,1711624251867,-500.0,0.00053424,120]
[320846844,1711624251878,-500.0,0.00053424,120]
[320846845,1711624251889,-500.0,0.00053424,120]
[320846846,1711624251900,-537.26787824,0.00053424,120]
[320846847,1711624251912,-500.0,0.00053424,120]
[320846848,1711624251922,-500.0,0.00053424,120]
[320846849,1711624251932,-500.0,0.00053424,120]
[320846850,1711624251943,-975.4,0.00053424,2]
[320846851,1711624251953,-1043.94,0.00053424,120]
[320846852,1711624251963,-500.0,0.00053424,120]
[320846853,1711624251973,-500.0,0.00053424,120]
[320846854,1711624251984,-500.0,0.00053424,120]
[320846855,1711624251994,-500.0,0.00053424,120]
[320846856,1711624252004,-500.0,0.00053424,120]
[320846857,1711624252014,-500.0,0.00053424,120]
[320846858,1711624252025,-581.29604014,0.00053424,120]
[320846859,1711624252036,-500.0,0.00053424,120]
[320846860,1711624252046,-707.92,0.00053424,120]
[320846861,1711624252057,-500.0,0.00053424,120]
[320846862,1711624252069,-784.12,0.00053424,120]
[320846863,1711624252079,-254.23696409,0.00053424,120]
[320846864,1711624252091,-500.0,0.00053424,120]
[320846865,1711624252105,-500.0,0.00053424,120]
[320846866,1711624252119,-500.0,0.00053424,120]
[320846867,1711624252129,-500.0,0.00053424,120]
[320846868,1711624252140,-500.0,0.00053424,120]
[320846869,1711624252151,-500.0,0.00053424,120]
[320846870,1711624252162,-575.88172989,0.00053424,120]
[320846871,1711624252172,-601.85,0.00053424,120]
[320846872,1711624252182,-500.0,0.00053424,120]
[320846873,1711624252194,-500.0,0.00053424,120]
[320846874,1711624252204,-732.92,0.00053424,120]
[320846875,1711624252214,-500.0,0.00053424,120]
[320846876,1711624252224,-500.0,0.00053424,120]
[320846877,1711624252233,-500.0,0.00053424,120]
[320846878,1711624252244,-500.0,0.00053424,120]
[320846879,1711624252255,-314.76937836,0.00053424,120]
[320846880,1711624252266,-500.0,0.00053424,120]
[320846881,1711624252280,-500.0,0.00053424,120]
[320846882,1711624252290,-500.0,0.00053424,120]
[320846883,1711624252301,-522.22648881,0.00053424,120]
[320846884,1711624252311,-500.0,0.00053424,120]
[320846885,1711624252321,-500.0,0.00053424,120]
[320846886,1711624252331,-500.0,0.00053424,120]
[320846887,1711624252342,-577.96395169,0.00053424,120]
[320846888,1711624252352,-500.0,0.00053424,120]
[320846889,1711624252363,-500.0,0.00053424,120]
[320846890,1711624252374,-590.77,0.00053424,120]
[320846891,1711624252384,-500.0,0.00053424,120]
[320846892,1711624252394,-733.27,0.00053424,120]
[320846893,1711624252404,-1070.59,0.00053424,120]
[320846894,1711624252416,-500.0,0.00053424,120]
[320846895,1711624252426,-518.14601513,0.00053424,120]
[320846896,1711624252437,-500.0,0.00053424,120]
[320846897,1711624252447,-641.41,0.00053424,120]
[320846898,1711624252458,-500.0,0.00053424,120]
[320846899,1711624252468,-500.0,0.00053424,120]
[320846900,1711624252478,-172.52867956,0.00053424,120]
[320846901,1711624252489,-500.0,0.00053424,120]
[320846902,1711624252499,-500.0,0.00053424,120]
[320846903,1711624252509,-1127.24,0.00053424,120]
[320846904,1711624252519,-500.0,0.00053424,120]
[320846905,1711624252530,-796.5,0.00053424,120]
[320846906,1711624252540,-500.0,0.00053424,120]
[320846907,1711624252550,-659.72,0.00053424,120]
[320846908,1711624252561,-500.0,0.00053424,120]
[320846909,1711624252572,-566.48,0.00053424,120]
[320846910,1711624252582,-500.0,0.00053424,120]
[320846911,1711624252593,-500.0,0.00053424,120]
[320846912,1711624252603,-507.53033713,0.00053424,120]
[320846913,1711624252613,-500.0,0.00053424,120]
[320846914,1711624252625,-510.15,0.00053424,120]
[320846915,1711624252639,-500.0,0.00053424,120]
[320846916,1711624252650,-500.0,0.00053424,120]
[320846917,1711624252661,-1021.01,0.00053424,120]
[320846918,1711624252671,-500.0,0.00053424,120]
[320846919,1711624252683,-500.0,0.00053424,120]
[320846920,1711624252694,-500.0,0.00053424,120]
[320846921,1711624252705,-509.89705219,0.00053424,120]
[320846922,1711624252717,-500.0,0.00053424,120]
[320846923,1711624252728,-745.62,0.00053424,120]
[320846924,1711624252740,-500.0,0.00053424,120]
[320846925,1711624252751,-500.0,0.00053424,120]
[320846926,1711624252762,-500.0,0.00053424,120]
[320846927,1711624252772,-500.0,0.00053424,120]
[320846928,1711624252782,-556.17,0.00053424,120]
[320846929,1711624252792,-704.85,0.00053424,120]
[320846930,1711624252801,-500.0,0.00053424,2]
[320846931,1711624252811,-500.0,0.00053424,120]
[320846932,1711624252821,-500.0,0.00053424,120]
[320846933,1711624252831,-500.0,0.00053424,120]
[320846934,1711624252842,-500.0,0.00053424,120]
[320846935,1711624252851,-500.0,0.00053424,120]
[320846936,1711624252862,-500.0,0.00053424,120]
[320846937,1711624252872,-1124.1,0.00053424,120]
[320846938,1711624252882,-602.15,0.00053424,120]
[320846939,1711624252892,-500.0,0.00053424,120]
[320846940,1711624252902,-500.0,0.00053424,120]
[320846941,1711624252911,-500.0,0.00053424,120]
[320846942,1711624252921,-597.49860048,0.00053424,120]
[320846943,1711624252931,-548.48112282,0.00053424,120]
[320846944,1711624252941,-575.74660817,0.00053424,120]
[320846945,1711624252951,-500.0,0.00053424,120]
[320846946,1711624252961,-688.63,0.00053424,120]
[320846947,1711624252970,-785.75,0.00053424,120]
[320846948,1711624252980,-500.0,0.00053424,120]
[320846949,1711624252990,-500.0,0.00053424,120]
[320846950,1711624252999,-509.34435462,0.00053424,120]
[320846951,1711624253009,-605.48,0.00053424,120]
[320846952,1711624253020,-500.0,0.00053424,120]
[320846953,1711624253031,-500.0,0.00053424,120]
[320846954,1711624253044,-1174.81,0.00053424,120]
[320846955,1711624253055,-693.01,0.00053424,120]
[320846956,1711624253067,-500.0,0.00053424,120]
[320846957,1711624253076,-294.29274949,0.00053424,120]
[320846958,1711624253087,-502.07936634,0.00053424,120]
[320846959,1711624253099,-500.0,0.00053424,120]
[320846960,1711624253112,-500.0,0.00053424,120]
[320846961,1711624253121,-500.0,0.00053424,120]
[320846962,1711624253131,-500.0,0.00053424,120]
[320846963,1711624253143,-500.0,0.00053424,120]
[320846964,1711624253155,-500.0,0.00053424,120]
[320846965,1711624253166,-592.41,0.00053424,120]
[320846966,1711624253178,-500.0,0.00053424,120]
[320846967,1711624253191,-538.4227015,0.00053424,120]
[320846968,1711624253203,-500.0,0.00053424,120]
[320846969,1711624253213,-500.0,0.00053424,120]
[320846970,1711624253225,-1041.95,0.00053424,120]
[320846971,1711624253237,-500.0,0.00053424,120]
[320846972,1711624253247,-560.03,0.00053424,30]
[320846973,1711624253258,-500.0,0.00053424,120]
[320846974,1711624253269,-500.0,0.00053424,120]
[320846975,1711624253279,-630.76,0.00053424,120]
[320846976,1711624253289,-359.77414268,0.00053424,120]
[320846977,1711624253298,-500.0,0.00053424,120]
[320846978,1711624253308,-500.0,0.00053424,120]
[320846979,1711624253318,-519.68829616,0.00053424,120]
[320846980,1711624253328,-500.0,0.00053424,120]
[320846981,1711624253338,-500.0,0.00053424,120]
[320846982,1711624253348,-500.0,0.00053424,120]
[320846983,1711624253358,-500.0,0.00053424,120]
[320846984,1711624253368,-500.0,0.00053424,120]
[320846985,1711624253378,-500.0,0.00053424,120]
[320846986,1711624253391,-712.88,0.00053424,120]
[320846987,1711624253402,-500.0,0.00053424,120]
[320846988,1711624253414,-500.0,0.00053424,120]
[320846989,1711624253428,-500.0,0.00053424,120]
[320846990,1711624253439,-621.64,0.00053424,120]
[320846991,1711624253451,-500.0,0.00053424,120]
[320846992,1711624253464,-531.73299214,0.00053424,120]
[320846993,1711624253475,-500.0,0.00053424,120]
[320846994,1711624253487,-1074.51,0.00053424,120]
[320846995,1711624253500,-500.0,0.00053424,120]
[320846996,1711624253511,-500.0,0.00053424,120]
[320846997,1711624253524,-500.0,0.00053424,120]
[320846998,1711624253536,-500.0,0.00053424,120]
[320846999,1711624253548,-467.60113878,0.00053424,120]
[320847000,1711624253559,-515.73910746,0.00053424,120]
[320847001,1711624253571,-522.16,0.00053424,120]
[320847002,1711624253582,-500.0,0.00053424,120]
[320847003,1711624253596,-669.49,0.00053424,2]
[320847004,1711624253610,-1526.28,0.00053424,120]
[320847005,1711624253862,-500.0,0.00053424,120]
[320847006,1711624253872,-500.0,0.00053424,120]
[320847007,1711624253882,-1722.31,0.00053424,120]
[320847008,1711624253891,-500.0,0.00053424,120]
[320847009,1711624253901,-500.0,0.00053424,120]
[320847010,1711624253910,-500.0,0.00053424,120]
[320847011,1711624253919,-602.81062381,0.00053424,120]
[320847012,1711624253929,-857.03,0.00053424,120]
[320847013,1711624253938,-1218.32,0.00053424,120]
[320847014,1711624253948,-500.0,0.00053424,120]
[320847015,1711624253957,-500.0,0.00053424,7]
[320847016,1711624253968,-881.46,0.00053424,120]
[320847017,1711624253977,-566.9080904,0.00053424,120]
[320847018,1711624253987,-500.0,0.00053424,120]
[320847019,1711624253997,-500.0,0.00053424,120]
[320847020,1711624254006,-500.0,0.00053424,120]
[320847021,1711624254017,-784.3,0.00053424,120]
[320847022,1711624254026,-500.0,0.00053424,120]
[320847023,1711624254036,-500.0,0.00053424,120]
[320847024,1711624254046,-500.0,0.00053424,120]
[320847025,1711624254056,-500.0,0.00053424,120]
[320847026,1711624254066,-514.28341459,0.00053424,120]
[320847027,1711624254075,-500.0,0.00053424,120]
[320847028,1711624254084,-153.17176742,0.00053424,120]
[320847029,1711624254096,-500.0,0.00053424,120]
[320847030,1711624254112,-500.0,0.00053424,120]
[320847031,1711624254122,-500.0,0.00053424,120]
[320847032,1711624254132,-500.0,0.00053424,120]
[320847033,1711624254142,-500.0,0.00053424,120]
[320847034,1711624254155,-500.0,0.00053424,120]
[320847035,1711624254165,-500.0,0.00053424,120]
[320847036,1711624254175,-500.0,0.00053424,120]
[320847037,1711624254185,-500.0,0.00053424,120]
[320847038,1711624254195,-500.0,0.00053424,120]
[320847039,1711624254206,-500.0,0.00053424,120]
[320847040,1711624254215,-1247.17,0.00053424,120]
[320847041,1711624254224,-365.91,0.00053424,120]
[320847042,1711624254234,-500.0,0.00053424,120]
[320847043,1711624254244,-514.63453777,0.00053424,120]
[320847044,1711624254254,-523.37235203,0.00053424,120]
[320847045,1711624254265,-892.56,0.00053424,120]
[320847046,1711624254276,-500.0,0.00053424,120]
[320847047,1711624254285,-500.0,0.00053424,120]
[320847048,1711624254295,-500.0,0.00053424,120]
[320847049,1711624254305,-500.0,0.00053424,120]
[320847050,1711624254319,-500.0,0.00053424,120]
[320847051,1711624254329,-512.31,0.00053424,120]
[320847052,1711624254340,-530.02932137,0.00053424,120]
[320847053,1711624254350,-500.0,0.00053424,120]
[320847054,1711624254360,-223.06715628,0.00053424,120]
[320847055,1711624254370,-500.0,0.00053424,120]
[320847056,1711624254380,-500.0,0.00053424,120]
[320847057,1711624254390,-566.11,0.00053424,120]
[320847058,1711624254400,-500.0,0.00053424,120]
[320847059,1711624254409,-518.40646569,0.00053424,120]
[320847060,1711624254419,-500.0,0.00053424,120]
[320847061,1711624254429,-685.82,0.00053424,120]
[320847062,1711624254439,-820.69,0.00053424,120]
[320847063,1711624254449,-507.74651504,0.00053424,120]
[320847064,1711624254458,-500.0,0.00053424,120]
[320847065,1711624254468,-209.07227936,0.00053424,120]
[320847066,1711624254479,-608.79,0.00053424,120]
[320847067,1711624254489,-710.22,0.00053424,120]
[320847068,1711624254499,-168.73630618,0.00053424,120]
[320847069,1711624254508,-854.54,0.00053424,120]
[320847070,1711624254518,-500.0,0.00053424,120]
[320847071,1711624254528,-500.0,0.00053424,120]
[320847072,1711624254538,-504.07,0.00053424,120]
[320847073,1711624254549,-500.0,0.00053424,120]
[320847074,1711624254558,-1139.56,0.00053424,120]
[320847075,1711624254568,-1760.75,0.00053424,120]
[320847076,1711624254578,-500.0,0.00053424,120]
[320847077,1711624254588,-1799.2,0.00053424,120]
[320847078,1711624254598,-1442.59,0.00053424,120]
[320847079,1711624254607,-554.28977464,0.00053424,120]
[320847080,1711624254616,-592.16,0.00053424,120]
[320847081,1711624254626,-500.0,0.00053424,120]
[320847082,1711624254636,-500.0,0.00053424,120]
[320847083,1711624254645,-500.0,0.00053424,120]
[320847084,1711624254655,-1640.63,0.00053424,120]
[320847085,1711624254665,-151.0,0.00053424,120]
[320847086,1711624254674,-541.6,0.00053424,120]
[320847087,1711624254684,-151.0,0.00053424,120]
[320847088,1711624254693,-151.0,0.00053424,120]
[320847089,1711624254702,-175.5,0.00053424,120]
[320847090,1711624254712,-265.58750236,0.00053424,120]
[320847091,1711624254721,-272.00677194,0.00053424,120]
[320847092,1711624254731,-1818.39,0.00053424,120]
[320847093,1711624254741,-4667.89,0.00053424,120]
[320847094,1711624254750,-2036.39,0.00053424,120]
[320847095,1711624254759,-816.15,0.00053424,120]
[320847096,1711624254768,-1753.56,0.00053424,120]
[320847097,1711624254778,-985.64,0.00053424,120]
[320847098,1711624254787,-992.74,0.00053424,120]
[320847099,1711624254797,-500.0,0.00053424,120]
[320847100,1711624254806,-1626.32,0.00053424,120]
[320847101,1711624254816,-500.0,0.00053424,120]
[320847102,1711624254826,-500.0,0.00053424,120]
[320847103,1711624254835,-500.0,0.00053424,120]
[320847104,1711624254850,-2031.84,0.00053424,120]
[320847105,1711624254859,-2317.05,0.00053424,120]
[320847106,1711624254868,-500.0,0.00053424,120]
[320847107,1711624254878,-983.88,0.00053424,120]
[320847108,1711624254888,-3370.05,0.00053424,120]
[320847109,1711624254898,-1033.22,0.00053424,120]
[320847110,1711624254907,-1266.19,0.00053424,120]
[320847111,1711624254917,-1983.33,0.00053424,120]
[320847112,1711624254927,-902.44,0.00053424,120]
[320847113,1711624254937,-2469.05,0.00053424,120]
[320847114,1711624254946,-590.31,0.00053424,120]
[320847115,1711624254956,-1301.78,0.00053424,120]
[320847116,1711624254966,-631.87,0.00053424,120]
[320847117,1711624254976,-525.34048343,0.00053424,120]
[320847118,1711624254986,-343.0775705,0.00053424,120]
[320847119,1711624254996,-1810.29,0.00053424,120]
[320847120,1711624255005,-500.0,0.00053424,120]
[320847121,1711624255015,-3016.59,0.00053424,120]
[320847122,1711624255025,-500.0,0.00053424,120]
[320847123,1711624255034,-1098.99,0.00053424,120]
[320847124,1711624255044,-12477.28,0.00053424,120]
[320847125,1711624255055,-500.0,0.00053424,120]
[320847126,1711624255065,-655.43,0.00053424,120]
[320847127,1711624255075,-500.0,0.00053424,120]
[320847128,1711624255086,-948.7,0.00053424,120]
[320847129,1711624255102,-500.0,0.00053424,120]
[320847130,1711624255115,-1663.79,0.00053424,120]
[320847131,1711624255126,-1293.58,0.00053424,120]
[320847132,1711624255137,-500.0,0.00053424,120]
[320847133,1711624255148,-500.0,0.00053424,120]
[320847134,1711624255159,-500.0,0.00053424,120]
[320847135,1711624255169,-500.0,0.00053424,120]
[320847136,1711624255179,-508.99793812,0.00053424,120]
[320847137,1711624255190,-10835.22,0.00053424,120]
[320847138,1711624255200,-2456.45,0.00053424,120]
[320847139,1711624255209,-782.67,0.00053424,120]
[320847140,1711624255218,-500.0,0.00053424,120]
[320847141,1711624255228,-500.0,0.00053424,120]
[320847142,1711624255237,-1574.76,0.00053424,120]
[320847143,1711624255248,-984.35,0.00053424,120]
[320847144,1711624255259,-848.35,0.00053424,120]
[320847145,1711624255269,-500.0,0.00053424,120]
[320847146,1711624255279,-1220.05,0.00053424,120]
[320847147,1711624255289,-500.0,0.00053424,120]
[320847148,1711624255299,-2513.74,0.00053424,120]
[320847149,1711624255309,-1712.64,0.00053424,120]
[320847150,1711624255319,-900.53,0.00053424,120]
[320847151,1711624255329,-1510.99,0.00053424,120]
[320847152,1711624255341,-1916.78,0.00053424,120]
[320847153,1711624255351,-442.95612376,0.00053424,120]
[320847154,1711624255362,-1099.48,0.00053424,120]
[320847155,1711624255372,-192.32272522,0.00053424,120]
[320847156,1711624255382,-213.60614589,0.00053424,120]
[320847157,1711624255394,-500.0,0.00053424,120]
[320847158,1711624255405,-870.92,0.00053424,120]
[320847159,1711624255416,-2809.0,0.00053424,120]
[320847160,1711624255427,-500.0,0.00053424,120]
[320847161,1711624255438,-500.0,0.00053424,120]
[320847162,1711624255449,-880.44,0.00053424,120]
[320847163,1711624255460,-733.83,0.00053424,120]
[320847164,1711624255471,-1265.78,0.00053424,120]
[320847165,1711624255482,-500.0,0.00053424,120]
[320847166,1711624255493,-622.19677548,0.00053424,120]
[320847167,1711624255504,-500.0,0.00053424,120]
[320847168,1711624255514,-500.0,0.00053424,120]
[320847169,1711624255526,-2695.91,0.00053424,120]
[320847170,1711624255536,-500.0,0.00053424,120]
[320847171,1711624255548,-168.57174733,0.00053424,120]
[320847172,1711624255559,-2025.11,0.00053424,120]
[320847173,1711624255571,-1774.05,0.00053424,120]
[320847174,1711624255582,-716.6,0.00053424,120]
[320847175,1711624255595,-500.0,0.00053424,120]
[320847176,1711624255605,-500.0,0.00053424,120]
[320847177,1711624255615,-2312.02,0.00053424,120]
[320847178,1711624255627,-1027.75,0.00053424,120]
[320847179,1711624255638,-513.71,0.00053424,120]
[320847180,1711624255649,-826.01,0.00053424,120]
[320847181,1711624255661,-500.0,0.00053424,120]
[320847182,1711624255673,-564.34,0.00053424,120]
[320847183,1711624255685,-366.89702441,0.00053424,120]
[320847184,1711624255696,-7333.99,0.00053424,120]
[320847185,1711624255708,-633.93,0.00053424,120]
[320847186,1711624255719,-12348.57,0.00053424,120]
[320847187,1711624255730,-500.0,0.00053424,120]
[320847188,1711624255742,-692.37,0.00053424,120]
[320847189,1711624255752,-500.0,0.00053424,120]
[320847190,1711624255762,-1197.38,0.00053424,120]
[320847191,1711624255772,-656.79,0.00053424,120]
[320847192,1711624255782,-608.64,0.00053424,120]
[320847193,1711624255792,-1793.89,0.00053424,120]
[320847194,1711624255802,-500.0,0.00053424,120]
[320847195,1711624255812,-1223.54,0.00053424,120]
[320847196,1711624255822,-500.0,0.00053424,120]
[320847197,1711624255832,-596.64,0.00053424,120]
[320847198,1711624255844,-1335.94,0.00053424,120]
[320847199,1711624255853,-500.0,0.00053424,7]
[320847200,1711624255862,-500.0,0.00053424,120]
[320847201,1711624255872,-617.78,0.00053424,120]
[320847202,1711624255881,-4075.95,0.00053424,120]
[320847203,1711624255891,-528.71663107,0.00053424,120]
[320847204,1711624255901,-519.13755836,0.00053424,120]
[320847205,1711624255910,-1032.42,0.00053424,120]
[320847206,1711624255920,-508.06799526,0.00053424,120]
[320847207,1711624255930,-1812.03,0.00053424,120]
[320847208,1711624255939,-818.17,0.00053424,120]
[320847209,1711624255949,-500.0,0.00053424,120]
[320847210,1711624255959,-530.61,0.00053424,120]
[320847211,1711624255970,-500.0,0.00053424,120]
[320847212,1711624255979,-500.0,0.00053424,120]
[320847213,1711624255989,-2297.33,0.00053424,120]
[320847214,1711624255999,-523.15309364,0.00053424,120]
[320847215,1711624256010,-1694.58,0.00053424,120]
[320847216,1711624256019,-1820.78,0.00053424,120]
[320847217,1711624256028,-1210.58,0.00053424,120]
[320847218,1711624256038,-539.68,0.00053424,120]
[320847219,1711624256047,-500.0,0.00053424,120]
[320847220,1711624256057,-782.46,0.00053424,120]
[320847221,1711624256066,-2025.86,0.00053424,120]
[320847222,1711624256076,-500.0,0.00053424,120]
[320847223,1711624256085,-1738.34,0.00053424,120]
[320847224,1711624256099,-513.4156859,0.00053424,120]
[320847225,1711624256114,-500.0,0.00053424,120]
[320847226,1711624256123,-636.37,0.00053424,120]
[320847227,1711624256132,-1880.31,0.00053424,21]
[320847228,1711624256143,-582.53,0.00053424,120]
[320847229,1711624256154,-2729.11,0.00053424,120]
[320847230,1711624256163,-500.0,0.00053424,120]
[320847231,1711624256173,-1683.09,0.00053424,120]
[320847232,1711624256184,-500.0,0.00053424,120]
[320847233,1711624256197,-715.87,0.00053424,120]
[320847234,1711624256207,-2170.63,0.00053424,120]
[320847235,1711624256216,-1371.14,0.00053424,120]
[320847236,1711624256226,-500.0,0.00053424,120]
[320847237,1711624256236,-2025.5,0.00053424,120]
[320847238,1711624256246,-2374.03,0.00053424,120]
[320847239,1711624256256,-727.75,0.00053424,120]
[320847240,1711624256269,-500.0,0.00053424,2]
[320847241,1711624256337,-1238.68,0.00053424,120]
[320847242,1711624256351,-802.24,0.00053424,120]
[320847243,1711624256361,-849.92,0.00053424,120]
[320847244,1711624256371,-1139.19,0.00053424,120]
[320847245,1711624256381,-609.55,0.00053424,120]
[320847246,1711624256392,-500.0,0.00053424,120]
[320847247,1711624256402,-500.0,0.00053424,120]
[320847248,1711624256412,-2756.55,0.00053424,120]
[320847249,1711624256421,-1319.46,0.00053424,120]
[320847250,1711624256431,-1088.7,0.00053424,120]
[320847251,1711624256441,-1312.08,0.00053424,120]
[320847252,1711624256450,-500.0,0.00053424,2]
[320847253,1711624256469,-1221.22,0.00053424,120]
[320847254,1711624256480,-873.0,0.00053424,120]
[320847255,1711624256491,-2852.93,0.00053424,120]
[320847256,1711624256500,-1166.34,0.00053424,120]
[320847257,1711624256510,-500.0,0.00053424,120]
[320847258,1711624256520,-1545.65,0.00053424,120]
[320847259,1711624256529,-266.639167,0.00053424,120]
[320847260,1711624256539,-266.639167,0.00053424,120]
[320847261,1711624256549,-500.0,0.00053424,120]
[320847262,1711624256558,-266.639167,0.00053424,120]
[320847263,1711624256568,-266.639167,0.00053424,120]
[320847264,1711624256577,-1619.08,0.00053424,120]
[320847265,1711624256587,-266.639167,0.00053424,120]
[320847266,1711624256597,-266.639167,0.00053424,120]
[320847267,1711624256606,-266.639167,0.00053424,120]
[320847268,1711624256616,-266.639167,0.00053424,120]
[320847269,1711624256625,-639.75870347,0.00053424,120]
[320847270,1711624256635,-2576.43,0.00053424,120]
[320847271,1711624256645,-500.0,0.00053424,120]
[320847272,1711624256654,-668.93,0.00053424,120]
[320847273,1711624256663,-500.0,0.00053424,120]
[320847274,1711624256672,-511.21245902,0.00053424,120]
[320847275,1711624256682,-1766.18,0.00053424,120]
[320847276,1711624256691,-1099.53,0.00053424,120]
[320847277,1711624256701,-2039.95,0.00053424,120]
[320847278,1711624256710,-1353.4,0.00053424,120]
[320847279,1711624256720,-1377.81,0.00053424,120]
[320847280,1711624256729,-826.68,0.00053424,120]
[320847281,1711624256739,-503.77766744,0.00053424,120]
[320847282,1711624256748,-500.0,0.00053424,120]
[320847283,1711624256757,-1705.44,0.00053424,120]